[Event "CZE-ch Youth B12 2022"]
[Site "Luhacovice"]
[Date "2022.03.13"]
[Round "2.5"]
[White "Kutil, Adam"]
[Black "Kroulik, Vaclav"]
[Result "0-1"]
[ECO "D02"]
[WhiteElo "1544"]
[BlackElo "1645"]
[Annotator "NA"]
[PlyCount "151"]
[EventDate "2022.03.12"]
[EventType "swiss"]
[EventCountry "CZE"]
[SourceTitle "playchess.com"]
[Source "ChessBase"]
[SourceQuality "1"]
[TimeControl "5400+30"]

1. Nf3 {[%emt 0:00:11]} d5 {[%emt 0:00:14]} 2. d4 {[%emt 0:00:09]} Nf6 {[%emt 0:00:16]} 3. c4 Bf5 {[%emt 0:01:06]} 4. Nc3 {[%emt 0:01:35]} e6 {[%emt 0:00:25]} 5. Bg5 {[%emt 0:00:52]} c6 {[%emt 0:00:34]} 6. e3 {[%emt 0:01:03]} h6 {[%emt 0:00:51]} 7. Bh4 {[%emt 0:01:15]} Nbd7 {[%emt 0:01:08]} 8. Bd3 {[%emt 0:02:44]} Bxd3 {[%emt 0:01:17]} 9. Qxd3 {[%emt 0:00:11]} Qb6 {[%emt 0:00:42]} 10. O-O {[%emt 0:02:31]} Be7 {[%emt 0:01:05]} 11. c5 {[%emt 0:09:55]} Qd8 {[%emt 0:01:34]} 12. b4 {[%emt 0:01:23]} g5 {[%emt 0:09:28]} 13. Bg3 {[%emt 0:00:33]} Nh5 {[%emt 0:02:27]} 14. Be5 {[%emt 0:03:27]} Nxe5 {[%emt 0:02:27]} 15. Nxe5 {[%emt 0:00:08]} Ng7 {[%emt 0:01:41]} 16. f4 {[%emt 0:06:44]} O-O {[%emt 0:07:16]} 17. fxg5 {[%emt 0:04:37]} Bxg5 {[%emt 0:01:30]} 18. e4 {[%emt 0:07:48]} f5 {[%emt 0:05:31]} 19. exf5 {[%emt 0:05:38]} exf5 {[%emt 0:01:17]} 20. b5 {[%emt 0:03:38]} Rc8 {[%emt 0:02:04]} 21. bxc6 {[%emt 0:01:52]} bxc6 {[%emt 0:00:32]} 22. Rf3 {[%emt 0:04:03]} Rc7 {[%emt 0:02:47]} 23. Raf1 {[%emt 0:03:40]} Qf6 {[%emt 0:01:30]} 24. g4 {[%emt 0:04:10]} f4 {[%emt 0:01:40]} 25. Ng6 {[%emt 0:04:13]} Ne6 {[%emt 0:12:35]} 26. Nxf8 {[%emt 0:08:01]} Kxf8 {[%emt 0:00:31]} 27. Ne2 {[%emt 0:00:39]} Rf7 {[%emt 0:04:46]} 28. Rd1 {[%emt 0:06:02]} Bh4 {[%emt 0:07:14]} 29. Rdf1 {[%emt 0:07:48]} Qg5 {[%emt 0:01:03]} 30. h3 {[%emt 0:05:03]} h5 {[%emt 0:00:55]} 31. Kh1 {[%emt 0:01:37]} hxg4 {[%emt 0:00:32]} 32. hxg4 {[%emt 0:00:26]} Qxg4 {[%emt 0:00:52]} 33. Rg1 {[%emt 0:00:33]} Qh5 {[%emt 0:00:34]} 34. Kg2 {[%emt 0:01:42]} Rg7+ {[%emt 0:01:28]} 35. Kf1 {[%emt 0:01:02]} Rxg1+ {[%emt 0:00:21]} 36. Nxg1 {[%emt 0:00:29]} Bf6 {[%emt 0:01:44]} 37. Rh3 {[%emt 0:00:53]} Qg4 {[%emt 0:01:05]} 38. Qf3 {[%emt 0:01:41]} Qg6 {[%emt 0:01:04]} 39. Qb3 {[%emt 0:01:08]} Bxd4 {[%emt 0:01:33]} 40. Qb8+ {[%emt 0:00:30]} Kf7 {[%emt 0:02:01]} 41. Ne2 {[%emt 0:00:30]} Bxc5 {[%emt 0:00:58]} 42. Rh8 {[%emt 0:00:32]} Kf6 {[%emt 0:01:20]} 43. Rg8 {[%emt 0:00:29]} Qh5 {[%emt 0:01:14]} 44. Rh8 {[%emt 0:00:33]} Qf3+ {[%emt 0:00:21]} 45. Ke1 {[%emt 0:00:05]} Qf2+ {[%emt 0:00:23]} 46. Kd1 {[%emt 0:00:20]} Qf1+ {[%emt 0:00:19]} 47. Kd2 {[%emt 0:00:15]} Be3+ {[%emt 0:00:17]} 48. Kc3 {[%emt 0:00:45]} d4+ {[%emt 0:00:44]} 49. Kb4 {[%emt 0:01:05]} c5+ {[%emt 0:00:48]} 50. Ka3 {[%emt 0:00:29]} Qxe2 {[%emt 0:01:38]} 51. Rh6+ {[%emt 0:00:29]} Kf5 {[%emt 0:00:19]} 52. Qb1+ {[%emt 0:00:15]} d3 {[%emt 0:00:53]} 53. Qb3 {[%emt 0:00:46]} Bc1+ {[%emt 0:00:21]} 54. Ka4 {[%emt 0:00:01]} Qe4+ {[%emt 0:00:10]} 55. Ka5 {[%emt 0:00:28]} Bd2+ {[%emt 0:02:45]} 56. Ka6 {[%emt 0:00:30]} Nc7+ {[%emt 0:00:16]} 57. Kxa7 {[%emt 0:00:24]} Qa8+ {[%emt 0:00:07]} 58. Kb6 {[%emt 0:00:11]} Qa6+ {[%emt 0:06:38]} 59. Kxc7 {[%emt 0:00:23]} Ba5+ {[%emt 0:00:22]} 60. Kd7 {[%emt 0:00:53]} Qxh6 {[%emt 0:00:12]} 61. Qxd3+ {[%emt 0:00:25]} Kg4 {[%emt 0:00:46]} 62. Qd1+ {[%emt 0:00:27]} f3 {[%emt 0:01:28]} 63. Qg1+ {[%emt 0:00:13]} Kh5 {[%emt 0:03:33]} 64. Qh2+ {[%emt 0:00:38]} Kg6 {[%emt 0:00:41]} 65. Qd6+ {[%emt 0:00:37]} Kh7 {[%emt 0:00:45]} 66. Qd3+ {[%emt 0:00:55]} Qg6 {[%emt 0:00:19]} 67. Qxf3 {[%emt 0:00:13]} Qg7+ {[%emt 0:00:30]} 68. Kc6 {[%emt 0:00:33]} Qc7+ {[%emt 0:00:16]} 69. Kb5 {[%emt 0:00:32]} Qb6+ {[%emt 0:01:04]} 70. Kc4 {[%emt 0:00:13]} Qb4+ {[%emt 0:00:18]} 71. Kd3 {[%emt 0:00:45]} Qa3+ {[%emt 0:00:54]} 72. Ke4 {[%emt 0:00:24]} Qxf3+ {[%emt 0:00:50]} 73. Kxf3 {[%emt 0:00:08]} c4 {[%emt 0:00:08]} 74. Ke3 {[%emt 0:00:27]} c3 {[%emt 0:00:10]} 75. Kd3 {[%emt 0:00:19]} Kg6 {[%emt 0:00:08]} 76. Kd4 0-1

[Event "CZE-ch Youth B12 2022"]
[Site "Luhacovice"]
[Date "2022.03.13"]
[Round "2.6"]
[White "Chon, Jeremy"]
[Black "Mydlar, Matej"]
[Result "1/2-1/2"]
[ECO "A05"]
[WhiteElo "1455"]
[BlackElo "1554"]
[Annotator "NA"]
[PlyCount "86"]
[EventDate "2022.03.12"]
[EventType "swiss"]
[EventCountry "CZE"]
[SourceTitle "playchess.com"]
[Source "ChessBase"]
[SourceQuality "1"]
[TimeControl "5400+30"]

1. Nf3 {[%emt 0:00:06]} Nf6 {[%emt 0:00:20]} 2. d4 {[%emt 0:00:03]} e6 {[%emt 0:00:53]} 3. Bf4 {[%emt 0:00:05]} c5 {[%emt 0:01:00]} 4. e3 {[%emt 0:00:50]} Nc6 {[%emt 0:01:13]} 5. c3 {[%emt 0:01:24]} d5 {[%emt 0:03:12]} 6. Bd3 {[%emt 0:00:51]} b6 {[%emt 0:00:40]} 7. O-O {[%emt 0:00:48]} Be7 {[%emt 0:04:43]} 8. Nbd2 {[%emt 0:07:14]} O-O {[%emt 0:01:30]} 9. Ne5 {[%emt 0:04:49]} Nxe5 {[%emt 0:04:36]} 10. dxe5 {[%emt 0:03:26]} Nd7 {[%emt 0:02:15]} 11. Bg3 {[%emt 0:09:37]} Bb7 {[%emt 0:05:17]} 12. Qg4 {[%emt 0:08:13]} Re8 {[%emt 0:04:27]} 13. h3 {[%emt 0:02:36]} Bf8 {[%emt 0:03:00]} 14. Rad1 {[%emt 0:05:37]} g6 {[%emt 0:08:26]} 15. h4 {[%emt 0:07:10]} Bg7 {[%emt 0:01:03]} 16. f4 {[%emt 0:00:56]} f5 {[%emt 0:17:42]} 17. Qh3 {[%emt 0:05:18]} Rc8 {[%emt 0:08:07]} 18. Bf2 {[%emt 0:03:29]} Qc7 {[%emt 0:03:52]} 19. Kh2 {[%emt 0:02:43]} Red8 {[%emt 0:06:43]} 20. Nf3 {[%emt 0:02:12]} h6 {[%emt 0:02:57]} 21. h5 {[%emt 0:01:08]} Nf8 {[%emt 0:01:40]} 22. hxg6 {[%emt 0:01:02]} Nxg6 {[%emt 0:02:12]} 23. g4 {[%emt 0:01:19]} d4 {[%emt 0:03:59]} 24. gxf5 {[%emt 0:04:15]} dxe3 {[%emt 0:01:38]} 25. fxg6 {[%emt 0:02:33]} exf2 {[%emt 0:00:24]} 26. Qxe6+ {[%emt 0:03:34]} Kh8 {[%emt 0:03:03]} 27. Qh3 {[%emt 0:06:37]} Bxf3 {[%emt 0:00:33]} 28. Qxf3 {[%emt 0:00:07]} Rf8 {[%emt 0:00:26]} 29. Qg4 {[%emt 0:01:09]} Rxf4 {[%emt 0:00:27]} 30. Qh5 {[%emt 0:04:34]} Qe7 {[%emt 0:01:27]} 31. Kg3 {[%emt 0:02:47]} Rcf8 {[%emt 0:01:47]} 32. Rd2 {[%emt 0:02:24]} Rh4 {[%emt 0:00:30]} 33. Qxh4 {[%emt 0:03:07]} Bxe5+ {[%emt 0:00:18]} 34. Kh3 {[%emt 0:00:16]} Rf3+ {[%emt 0:00:09]} 35. Kg2 {[%emt 0:00:13]} Qxh4 {[%emt 0:00:32]} 36. Kxf3 {[%emt 0:00:05]} c4 {[%emt 0:01:05]} 37. Bb1 {[%emt 0:01:36]} Qg3+ {[%emt 0:00:15]} 38. Ke2 {[%emt 0:00:28]} Bf4 {[%emt 0:03:08]} 39. Rd8+ {[%emt 0:00:55]} Kg7 {[%emt 0:00:08]} 40. Re8 {[%emt 0:01:14]} h5 {[%emt 0:01:55]} 41. Rxf2 {[%emt 0:01:20]} Qg4+ {[%emt 0:01:32]} 42. Rf3 {[%emt 0:00:48]} Qg2+ {[%emt 0:01:15]} 43. Rf2 {[%emt 0:00:12]} Qg4+ 1/2-1/2

[Event "CZE-ch Youth B12 2022"]
[Site "Luhacovice"]
[Date "2022.03.13"]
[Round "2.7"]
[White "Sotek, Simon"]
[Black "Kozdon, Marek"]
[Result "1/2-1/2"]
[ECO "D14"]
[WhiteElo "1280"]
[BlackElo "1183"]
[Annotator "NA"]
[PlyCount "120"]
[EventDate "2022.03.12"]
[EventType "swiss"]
[EventCountry "CZE"]
[SourceTitle "playchess.com"]
[Source "ChessBase"]
[SourceQuality "1"]
[TimeControl "5400+30"]

1. d4 {[%emt 0:00:01]} d5 {[%emt 0:00:50]} 2. c4 {[%emt 0:00:07]} c6 {[%emt 0:00:58]} 3. Nc3 {[%emt 0:00:09]} Nf6 {[%emt 0:02:25]} 4. cxd5 {[%emt 0:00:50]} cxd5 {[%emt 0:00:14]} 5. Nf3 {[%emt 0:00:39]} Bf5 {[%emt 0:00:34]} 6. Bf4 {[%emt 0:02:27]} Nc6 {[%emt 0:01:47]} 7. e3 {[%emt 0:01:12]} e6 {[%emt 0:01:51]} 8. Bd3 {[%emt 0:03:40]} Bg6 {[%emt 0:02:04]} 9. Ne5 {[%emt 0:01:34]} Nxe5 {[%emt 0:03:32]} 10. Bxe5 {[%emt 0:06:14]} Bd6 {[%emt 0:01:01]} 11. Bxg6 {[%emt 0:02:30]} hxg6 {[%emt 0:00:10]} 12. Qa4+ {[%emt 0:00:45]} Kf8 {[%emt 0:02:07]} 13. Bxd6+ {[%emt 0:07:26]} Qxd6 {[%emt 0:00:23]} 14. h3 {[%emt 0:07:44]} Nd7 {[%emt 0:03:18]} 15. Ke2 {[%emt 0:05:19]} Nb6 {[%emt 0:00:59]} 16. Qb3 {[%emt 0:01:23]} Qc6 {[%emt 0:00:54]} 17. Rac1 {[%emt 0:02:56]} Qc4+ {[%emt 0:00:52]} 18. Qxc4 {[%emt 0:00:35]} Nxc4 {[%emt 0:00:05]} 19. b3 {[%emt 0:00:29]} Nd6 {[%emt 0:00:17]} 20. a4 {[%emt 0:02:38]} a6 {[%emt 0:02:39]} 21. Rc2 {[%emt 0:01:31]} Rc8 {[%emt 0:00:16]} 22. Rhc1 {[%emt 0:00:29]} Ke7 {[%emt 0:00:18]} 23. f3 {[%emt 0:01:17]} Kd7 {[%emt 0:01:09]} 24. e4 {[%emt 0:02:33]} dxe4 {[%emt 0:02:22]} 25. Nxe4 {[%emt 0:02:08]} Rxc2+ {[%emt 0:00:44]} 26. Rxc2 {[%emt 0:00:20]} Nxe4 {[%emt 0:00:07]} 27. fxe4 {[%emt 0:00:17]} Rc8 {[%emt 0:00:39]} 28. Rxc8 {[%emt 0:04:55]} Kxc8 {[%emt 0:00:10]} 29. Kd3 {[%emt 0:03:35]} Kd7 {[%emt 0:00:26]} 30. h4 {[%emt 0:02:39]} Kd6 {[%emt 0:01:37]} 31. Kc4 {[%emt 0:04:08]} b6 {[%emt 0:02:03]} 32. e5+ {[%emt 0:03:12]} Kc6 {[%emt 0:00:34]} 33. g4 {[%emt 0:06:34]} b5+ {[%emt 0:04:01]} 34. axb5+ {[%emt 0:00:45]} axb5+ {[%emt 0:00:00]} 35. Kd3 {[%emt 0:00:34]} Kd5 {[%emt 0:00:09]} 36. b4 {[%emt 0:00:10]} g5 {[%emt 0:01:27]} 37. hxg5 {[%emt 0:00:49]} g6 {[%emt 0:00:10]} 38. Ke3 {[%emt 0:00:12]} Kc4 {[%emt 0:00:16]} 39. Ke4 {[%emt 0:00:01]} Kxb4 {[%emt 0:00:42]} 40. d5 {[%emt 0:00:03]} exd5+ {[%emt 0:00:34]} 41. Kxd5 {[%emt 0:00:06]} Kc3 {[%emt 0:00:31]} 42. Kd6 {[%emt 0:00:06]} b4 {[%emt 0:00:12]} 43. Ke7 {[%emt 0:00:08]} b3 {[%emt 0:00:05]} 44. Kxf7 {[%emt 0:00:09]} b2 {[%emt 0:00:07]} 45. e6 {[%emt 0:00:06]} b1=Q {[%emt 0:00:08]} 46. e7 {[%emt 0:00:11]} Qb7 {[%emt 0:00:20]} 47. Kf8 {[%emt 0:00:13]} Qf3+ {[%emt 0:00:14]} 48. Kg7 {[%emt 0:00:19]} Qe4 {[%emt 0:00:14]} 49. Kf7 {[%emt 0:00:34]} Qd5+ {[%emt 0:00:39]} 50. Kf8 {[%emt 0:00:22]} Qf3+ {[%emt 0:00:55]} 51. Kg7 {[%emt 0:00:16]} Qe3 {[%emt 0:02:55]} 52. Kf7 {[%emt 0:00:15]} Qf2+ {[%emt 0:00:33]} 53. Kxg6 {[%emt 0:01:20]} Qe3 {[%emt 0:00:15]} 54. Kf7 {[%emt 0:00:15]} Qf4+ {[%emt 0:00:29]} 55. Kg6 {[%emt 0:00:38]} Qe4+ {[%emt 0:00:20]} 56. Kf7 {[%emt 0:00:18]} Qd5+ {[%emt 0:00:26]} 57. Kf8 {[%emt 0:00:22]} Qd6 {[%emt 0:01:19]} 58. Kf7 {[%emt 0:00:26]} Qd5+ {[%emt 0:00:40]} 59. Kf8 {[%emt 0:00:15]} Qf3+ {[%emt 0:00:08]} 60. Kg7 {[%emt 0:00:25]} Qb7 {[%emt 0:00:54]} 1/2-1/2

[Event "CZE-ch Youth B12 2022"]
[Site "Luhacovice"]
[Date "2022.03.13"]
[Round "2.8"]
[White "Soucek, Andrej"]
[Black "Topencik, Bruno"]
[Result "1-0"]
[ECO "C65"]
[WhiteElo "1399"]
[BlackElo "1339"]
[Annotator "NA"]
[PlyCount "123"]
[EventDate "2022.03.12"]
[EventType "swiss"]
[EventCountry "CZE"]
[SourceTitle "playchess.com"]
[Source "ChessBase"]
[SourceQuality "1"]
[TimeControl "5400+30"]

1. e4 {[%emt 0:00:04]} e5 {[%emt 0:00:10]} 2. Nf3 {[%emt 0:00:06]} Nc6 {[%emt 0:00:09]} 3. Bb5 {[%emt 0:00:07]} Nf6 {[%emt 0:00:55]} 4. O-O {[%emt 0:01:09]} Bc5 {[%emt 0:01:24]} 5. c3 {[%emt 0:04:51]} a6 {[%emt 0:11:15]} 6. Ba4 {[%emt 0:00:17]} b5 {[%emt 0:03:39]} 7. Bc2 {[%emt 0:04:17]} d6 {[%emt 0:03:53]} 8. h3 {[%emt 0:04:18]} O-O {[%emt 0:01:59]} 9. d4 {[%emt 0:02:53]} exd4 {[%emt 0:02:59]} 10. cxd4 {[%emt 0:00:08]} Bb6 {[%emt 0:00:35]} 11. Bg5 {[%emt 0:04:08]} h6 {[%emt 0:04:08]} 12. Bh4 {[%emt 0:04:53]} Re8 {[%emt 0:03:15]} 13. Nc3 {[%emt 0:01:30]} g5 {[%emt 0:03:31]} 14. Bg3 {[%emt 0:14:11]} b4 {[%emt 0:05:21]} 15. Ba4 {[%emt 0:00:25]} Bd7 {[%emt 0:01:40]} 16. e5 {[%emt 0:04:03]} bxc3 {[%emt 0:03:17]} 17. exf6 {[%emt 0:00:20]} cxb2 {[%emt 0:01:05]} 18. Rb1 {[%emt 0:00:32]} Qxf6 {[%emt 0:02:41]} 19. Rxb2 {[%emt 0:07:08]} Nxd4 {[%emt 0:07:09]} 20. Bxd7 {[%emt 0:06:26]} Nxf3+ {[%emt 0:01:01]} 21. Qxf3 {[%emt 0:00:30]} Qxb2 {[%emt 0:01:13]} 22. Bxe8 {[%emt 0:00:10]} Rxe8 {[%emt 0:00:17]} 23. Qd5 {[%emt 0:01:52]} Qd4 {[%emt 0:03:41]} 24. Qc6 {[%emt 0:00:28]} Qe4 {[%emt 0:01:30]} 25. Qd7 {[%emt 0:02:21]} Qe6 {[%emt 0:01:42]} 26. Qa4 {[%emt 0:00:24]} a5 {[%emt 0:00:38]} 27. Qc6 {[%emt 0:00:19]} Rd8 {[%emt 0:00:56]} 28. h4 {[%emt 0:01:37]} f6 {[%emt 0:03:22]} 29. a4 {[%emt 0:00:58]} Kf8 {[%emt 0:03:52]} 30. Rc1 {[%emt 0:01:24]} Qb3 {[%emt 0:02:06]} 31. Rc3 {[%emt 0:01:03]} Qd1+ {[%emt 0:00:58]} 32. Kh2 {[%emt 0:00:14]} Qh5 {[%emt 0:00:47]} 33. Kg1 {[%emt 0:01:28]} Qe8 {[%emt 0:03:58]} 34. Qf3 {[%emt 0:00:27]} Qf7 {[%emt 0:01:18]} 35. Qc6 {[%emt 0:02:13]} Rd7 {[%emt 0:02:00]} 36. Qa8+ {[%emt 0:00:45]} Kg7 {[%emt 0:00:30]} 37. Qe4 {[%emt 0:03:31]} d5 {[%emt 0:01:02]} 38. Qg4 {[%emt 0:02:55]} d4 {[%emt 0:02:02]} 39. Rd3 {[%emt 0:00:15]} c5 {[%emt 0:01:08]} 40. hxg5 {[%emt 0:00:36]} hxg5 {[%emt 0:01:06]} 41. Be5 {[%emt 0:04:25]} Kg6 {[%emt 0:08:26]} 42. Bxf6 {[%emt 0:00:25]} Qxf6 {[%emt 0:01:14]} 43. Qxd7 {[%emt 0:00:33]} Qf5 {[%emt 0:00:48]} 44. Qe8+ {[%emt 0:01:28]} Qf7 {[%emt 0:00:23]} 45. Qxf7+ {[%emt 0:00:06]} Kxf7 {[%emt 0:00:06]} 46. Rb3 {[%emt 0:00:20]} Bd8 {[%emt 0:00:52]} 47. Rb5 {[%emt 0:00:13]} c4 {[%emt 0:00:24]} 48. Kf1 {[%emt 0:01:13]} c3 {[%emt 0:00:58]} 49. Rc5 {[%emt 0:00:18]} Be7 {[%emt 0:00:53]} 50. Rc4 {[%emt 0:00:13]} Bf6 {[%emt 0:00:15]} 51. Ke2 {[%emt 0:00:18]} Ke6 {[%emt 0:00:10]} 52. Kd3 {[%emt 0:00:28]} Kd5 {[%emt 0:00:12]} 53. Rc7 {[%emt 0:01:55]} Kd6 {[%emt 0:01:29]} 54. Ra7 {[%emt 0:00:18]} Bd8 {[%emt 0:00:19]} 55. Ra8 {[%emt 0:00:28]} Bb6 {[%emt 0:02:02]} 56. Rg8 {[%emt 0:00:26]} Kc5 {[%emt 0:00:08]} 57. Rxg5+ {[%emt 0:00:14]} Kb4 {[%emt 0:00:11]} 58. Rb5+ {[%emt 0:00:07]} Kxa4 {[%emt 0:00:19]} 59. Rxb6 {[%emt 0:00:16]} Ka3 {[%emt 0:00:16]} 60. g4 {[%emt 0:01:38]} a4 {[%emt 0:00:32]} 61. g5 {[%emt 0:00:34]} Ka2 {[%emt 0:00:09]} 62. g6 1-0

[Event "CZE-ch Youth B12 2022"]
[Site "Luhacovice"]
[Date "2022.03.13"]
[Round "2.9"]
[White "Krautschneider, Daniel Jan"]
[Black "Tejnor, Martin"]
[Result "1-0"]
[ECO "B80"]
[WhiteElo "1304"]
[BlackElo "1367"]
[Annotator "NA"]
[PlyCount "45"]
[EventDate "2022.03.12"]
[EventType "swiss"]
[EventCountry "CZE"]
[SourceTitle "playchess.com"]
[Source "ChessBase"]
[SourceQuality "1"]
[TimeControl "5400+30"]

1. e4 {[%emt 0:00:06]} c5 {[%emt 0:00:02]} 2. Nf3 {[%emt 0:00:05]} Nf6 {[%emt 0:00:12]} 3. Nc3 {[%emt 0:00:51]} d6 {[%emt 0:00:57]} 4. d4 {[%emt 0:00:11]} cxd4 {[%emt 0:00:30]} 5. Nxd4 {[%emt 0:00:12]} e6 {[%emt 0:00:43]} 6. Be3 {[%emt 0:00:28]} Be7 {[%emt 0:00:33]} 7. f3 {[%emt 0:00:16]} a6 {[%emt 0:00:25]} 8. Qd2 {[%emt 0:00:44]} Nc6 {[%emt 0:01:56]} 9. O-O-O {[%emt 0:01:45]} Bd7 {[%emt 0:00:30]} 10. g4 {[%emt 0:00:18]} b5 {[%emt 0:01:38]} 11. h4 {[%emt 0:00:29]} b4 {[%emt 0:04:32]} 12. Nb1 {[%emt 0:00:28]} a5 {[%emt 0:02:33]} 13. h5 {[%emt 0:00:24]} a4 {[%emt 0:04:03]} 14. Bd3 {[%emt 0:02:21]} b3 {[%emt 0:17:11]} 15. a3 {[%emt 0:03:36]} bxc2 {[%emt 0:00:26]} 16. Bxc2 {[%emt 0:00:28]} Ne5 {[%emt 0:00:46]} 17. g5 {[%emt 0:01:48]} Ng8 {[%emt 0:01:14]} 18. Rdg1 {[%emt 0:04:12]} Nc4 {[%emt 0:09:10]} 19. Qe2 {[%emt 0:00:34]} Rc8 {[%emt 0:01:42]} 20. Nc3 {[%emt 0:01:31]} Nxa3 {[%emt 0:07:21]} 21. g6 {[%emt 0:00:29]} f6 {[%emt 0:03:22]} 22. gxh7 {[%emt 0:00:14]} Rxh7 {[%emt 0:00:07]} 23. Qg2 {[%emt 0:00:24]} 1-0

[Event "CZE-ch Youth B12 2022"]
[Site "Luhacovice"]
[Date "2022.03.13"]
[Round "2.10"]
[White "Letal, Hynek"]
[Black "Stejskal, Jakub"]
[Result "0-1"]
[ECO "B43"]
[WhiteElo "1371"]
[BlackElo "1557"]
[Annotator "NA"]
[PlyCount "102"]
[EventDate "2022.03.12"]
[EventType "swiss"]
[EventCountry "CZE"]
[SourceTitle "playchess.com"]
[Source "ChessBase"]
[SourceQuality "1"]
[TimeControl "5400+30"]

1. e4 {[%emt 0:00:05]} c5 {[%emt 0:00:08]} 2. Nf3 {[%emt 0:00:13]} e6 {[%emt 0:00:15]} 3. d4 {[%emt 0:00:29]} cxd4 {[%emt 0:00:07]} 4. Nxd4 {[%emt 0:00:14]} a6 {[%emt 0:00:19]} 5. Nc3 {[%emt 0:00:32]} b5 {[%emt 0:01:23]} 6. a3 {[%emt 0:00:50]} Bb7 {[%emt 0:01:09]} 7. f4 {[%emt 0:02:15]} d6 {[%emt 0:05:00]} 8. Qf3 {[%emt 0:03:30]} Nf6 {[%emt 0:02:27]} 9. g4 {[%emt 0:02:09]} Nc6 {[%emt 0:15:04]} 10. Nxc6 {[%emt 0:03:45]} Bxc6 {[%emt 0:00:33]} 11. g5 {[%emt 0:01:47]} Nd7 {[%emt 0:01:01]} 12. Be3 {[%emt 0:01:20]} Be7 {[%emt 0:04:58]} 13. h4 {[%emt 0:02:11]} h5 {[%emt 0:09:55]} 14. gxh6 {[%emt 0:04:38]} Bxh4+ {[%emt 0:02:11]} 15. Bf2 {[%emt 0:03:27]} Rxh6 {[%emt 0:02:41]} 16. O-O-O {[%emt 0:03:04]} Bxf2 {[%emt 0:03:37]} 17. Rxh6 {[%emt 0:01:08]} gxh6 {[%emt 0:00:19]} 18. Qxf2 {[%emt 0:00:19]} Nc5 {[%emt 0:02:00]} 19. e5 {[%emt 0:03:10]} Qb6 {[%emt 0:07:28]} 20. Qh4 {[%emt 0:05:36]} dxe5 {[%emt 0:02:22]} 21. fxe5 {[%emt 0:01:11]} Rd8 {[%emt 0:05:08]} 22. Rd6 {[%emt 0:04:36]} Rxd6 {[%emt 0:03:49]} 23. exd6 {[%emt 0:00:21]} Qd8 {[%emt 0:00:11]} 24. Qg3 {[%emt 0:02:14]} Qg5+ {[%emt 0:02:28]} 25. Qxg5 {[%emt 0:00:21]} hxg5 {[%emt 0:00:06]} 26. b4 {[%emt 0:01:37]} Nb7 {[%emt 0:00:19]} 27. Ne2 {[%emt 0:00:51]} Nxd6 {[%emt 0:00:40]} 28. Nd4 {[%emt 0:00:37]} Be4 {[%emt 0:01:00]} 29. Kd2 {[%emt 0:00:39]} Nf5 {[%emt 0:00:51]} 30. Nb3 {[%emt 0:00:53]} Bb7 {[%emt 0:04:16]} 31. Nc5 {[%emt 0:00:43]} Bc8 {[%emt 0:00:18]} 32. c4 {[%emt 0:00:51]} bxc4 {[%emt 0:00:48]} 33. Bxc4 {[%emt 0:00:23]} Nd6 {[%emt 0:00:06]} 34. Be2 {[%emt 0:00:55]} f5 {[%emt 0:01:31]} 35. Nxa6 {[%emt 0:00:44]} Ne4+ {[%emt 0:01:08]} 36. Ke3 {[%emt 0:00:55]} Kd7 {[%emt 0:01:44]} 37. b5 {[%emt 0:01:34]} Kd6 {[%emt 0:04:58]} 38. a4 {[%emt 0:01:41]} Nc3 {[%emt 0:01:13]} 39. Bf3 {[%emt 0:04:34]} Nxa4 {[%emt 0:01:53]} 40. Nb4 {[%emt 0:01:41]} Kc5 {[%emt 0:01:53]} 41. Nd3+ {[%emt 0:00:21]} Kxb5 {[%emt 0:00:50]} 42. Ne5 {[%emt 0:00:29]} Nb2 {[%emt 0:03:13]} 43. Nf7 {[%emt 0:01:13]} Nc4+ {[%emt 0:00:54]} 44. Kf2 {[%emt 0:01:34]} g4 {[%emt 0:00:47]} 45. Be2 {[%emt 0:00:22]} Kc5 {[%emt 0:00:22]} 46. Bxc4 {[%emt 0:00:23]} Kxc4 {[%emt 0:00:28]} 47. Nd6+ {[%emt 0:00:08]} Kd4 {[%emt 0:00:14]} 48. Nxc8 {[%emt 0:00:19]} e5 {[%emt 0:01:21]} 49. Nd6 {[%emt 0:00:28]} f4 {[%emt 0:00:17]} 50. Nf5+ {[%emt 0:01:10]} Kd3 {[%emt 0:00:45]} 51. Nd6 {[%emt 0:00:28]} e4 {[%emt 0:00:25]} 0-1

[Event "CZE-ch Youth B12 2022"]
[Site "Luhacovice"]
[Date "2022.03.13"]
[Round "2.11"]
[White "Jansky, Adam"]
[Black "Pasek, Josef"]
[Result "0-1"]
[ECO "B45"]
[WhiteElo "1233"]
[BlackElo "1351"]
[Annotator "NA"]
[PlyCount "78"]
[EventDate "2022.03.12"]
[EventType "swiss"]
[EventCountry "CZE"]
[SourceTitle "playchess.com"]
[Source "ChessBase"]
[SourceQuality "1"]
[TimeControl "5400+30"]

1. e4 {[%emt 0:00:02]} c5 {[%emt 0:00:01]} 2. Nf3 {[%emt 0:00:06]} e6 {[%emt 0:00:21]} 3. d4 {[%emt 0:00:04]} cxd4 {[%emt 0:00:08]} 4. Nxd4 {[%emt 0:00:10]} Nc6 {[%emt 0:01:11]} 5. Nc3 {[%emt 0:00:09]} Bb4 {[%emt 0:00:38]} 6. Nxc6 {[%emt 0:00:21]} bxc6 {[%emt 0:00:14]} 7. Qd4 {[%emt 0:00:08]} Bf8 {[%emt 0:02:06]} 8. Be2 {[%emt 0:01:30]} d5 {[%emt 0:01:07]} 9. O-O {[%emt 0:01:13]} Nf6 {[%emt 0:00:34]} 10. Bg5 {[%emt 0:00:16]} Be7 {[%emt 0:01:09]} 11. e5 {[%emt 0:01:53]} Nd7 {[%emt 0:00:20]} 12. Bd2 {[%emt 0:01:12]} Qc7 {[%emt 0:01:43]} 13. Bf4 {[%emt 0:03:59]} c5 {[%emt 0:06:33]} 14. Qd3 {[%emt 0:01:22]} a6 {[%emt 0:07:21]} 15. Qg3 {[%emt 0:02:48]} O-O {[%emt 0:08:45]} 16. Rae1 {[%emt 0:03:12]} Re8 {[%emt 0:03:04]} 17. Bf3 {[%emt 0:01:59]} Nf8 {[%emt 0:00:50]} 18. Nxd5 {[%emt 0:11:17]} exd5 {[%emt 0:09:00]} 19. Bxd5 {[%emt 0:00:16]} Be6 {[%emt 0:00:48]} 20. Bxa8 {[%emt 0:00:32]} Rxa8 {[%emt 0:00:21]} 21. Qf3 {[%emt 0:02:49]} Rb8 {[%emt 0:02:19]} 22. b3 {[%emt 0:00:41]} c4 {[%emt 0:00:51]} 23. Qe2 {[%emt 0:03:05]} Ng6 {[%emt 0:01:10]} 24. Bg3 {[%emt 0:00:43]} Qa5 {[%emt 0:02:57]} 25. Ra1 {[%emt 0:03:50]} h6 {[%emt 0:04:26]} 26. f4 {[%emt 0:00:31]} Bc5+ {[%emt 0:01:43]} 27. Kh1 {[%emt 0:00:34]} Ne7 {[%emt 0:00:39]} 28. Qe1 {[%emt 0:03:59]} Bb4 {[%emt 0:01:59]} 29. Qc1 {[%emt 0:02:24]} Bd2 {[%emt 0:06:57]} 30. Be1 {[%emt 0:02:32]} c3 {[%emt 0:01:58]} 31. Qd1 {[%emt 0:00:23]} Rd8 {[%emt 0:00:16]} 32. a3 {[%emt 0:03:31]} Qb5 {[%emt 0:01:53]} 33. Bxd2 {[%emt 0:00:29]} Rxd2 {[%emt 0:00:07]} 34. Qe1 {[%emt 0:02:34]} Nf5 {[%emt 0:01:13]} 35. Rf2 {[%emt 0:00:58]} Qd5 {[%emt 0:02:29]} 36. Rxd2 {[%emt 0:02:06]} cxd2 {[%emt 0:00:24]} 37. Qe2 {[%emt 0:00:14]} Ne3 {[%emt 0:02:23]} 38. Rd1 {[%emt 0:05:08]} Nxd1 {[%emt 0:00:09]} 39. Qxd1 {[%emt 0:00:04]} Bg4 {[%emt 0:00:19]} 0-1